lending/lending_fUSD_20240504
["ID","MTS","AMOUNT","RATE_DAILY","PERIOD"]
[325390868,1714805443868,-1031.31,0.00041095,30]
[325390869,1714805443877,-500.0,0.00041095,30]
[325390870,1714805443887,-1266.7,0.00041095,30]
[325390871,1714805443896,-500.0,0.00041095,30]
[325390872,1714805443904,-2238.25,0.00041095,30]
[325390873,1714805443918,-751.42,0.00041095,30]
[325390874,1714805443927,-500.0,0.00041095,30]
[325390875,1714805443936,-2109.17,0.00041095,30]
[325390876,1714805443945,-1745.04,0.00041095,30]
[325390877,1714805443955,-500.0,0.00041095,30]
[325390878,1714805443964,-500.0,0.00041095,30]
[325390879,1714805443973,-600.68,0.00041095,30]
[325390880,1714805443983,-500.0,0.00041095,30]
[325390881,1714805443995,-500.0,0.00041095,30]
[325390882,1714805444005,-1538.37,0.00041095,30]
[325390883,1714805444014,-2625.11,0.00041095,30]
[325390884,1714805444024,-1368.67,0.00041095,30]
[325390885,1714805444033,-500.0,0.00041095,30]
[325390886,1714805444042,-1117.26,0.00041095,30]
[325390887,1714805444051,-1275.97,0.00041095,30]
[325390888,1714805444061,-500.0,0.00041095,30]
[325390889,1714805444070,-797.0,0.00041095,30]
[325390890,1714805444079,-2447.9,0.00041095,30]
[325390891,1714805444088,-500.0,0.00041095,30]
[325390892,1714805444097,-516.27932907,0.00041095,30]
[325390893,1714805444107,-1027.27,0.00041095,30]
[325390894,1714805444116,-817.5,0.00041095,30]
[325390895,1714805444125,-844.52,0.00041095,30]
[325390896,1714805444134,-2173.42,0.00041095,30]
[325390897,1714805444143,-1891.91,0.00041095,30]
[325390898,1714805444152,-1228.43,0.00041095,30]
[325390899,1714805444161,-605.18,0.00041095,30]
[325390900,1714805444170,-502.15035279,0.00041095,30]
[325390901,1714805444179,-500.0,0.00041095,30]
[325390902,1714805444188,-1354.78,0.00041095,30]
[325390903,1714805444198,-1409.46,0.00041095,30]
[325390904,1714805444207,-500.0,0.00041095,30]
[325390905,1714805444216,-507.27316897,0.00041095,30]
[325390906,1714805444225,-589.03,0.00041095,30]
[325390907,1714805444238,-714.65,0.00041095,30]
[325390908,1714805444248,-500.0,0.00041095,30]
[325390909,1714805444257,-2121.23,0.00041095,30]
[325390910,1714805444267,-500.0,0.00041095,30]
[325390911,1714805444276,-500.0,0.00041095,30]
[325390912,1714805444286,-500.0,0.00041095,30]
[325390913,1714805444296,-500.0,0.00041095,30]
[325390914,1714805444305,-500.0,0.00041095,30]
[325390915,1714805444315,-2505.77,0.00041095,30]
[325390916,1714805444324,-1053.51,0.00041095,30]
[325390917,1714805444334,-1362.34,0.00041095,30]
[325390918,1714805444343,-1180.14,0.00041095,30]
[325390919,1714805444352,-623.35,0.00041095,30]
[325390920,1714805444361,-500.0,0.00041095,30]
[325390921,1714805444371,-500.0,0.00041095,30]
[325390922,1714805444380,-561.55,0.00041095,30]
[325390923,1714805444390,-666.65,0.00041095,30]
[325390924,1714805444399,-1412.4,0.00041095,30]
[325390925,1714805444409,-646.94,0.00041095,30]
[325390926,1714805444418,-500.0,0.00041095,30]
[325390927,1714805444428,-808.57,0.00041095,30]
[325390928,1714805444438,-890.4,0.00041095,30]
[325390929,1714805444447,-500.0,0.00041095,30]
[325390930,1714805444456,-500.0,0.00041095,30]
[325390931,1714805444466,-1339.09,0.00041095,30]
[325390932,1714805444475,-899.32,0.00041095,30]
[325390933,1714805444485,-1137.95,0.00041095,30]
[325390934,1714805444495,-500.0,0.00041095,30]
[325390935,1714805444504,-500.0,0.00041095,30]
[325390936,1714805444514,-500.0,0.00041095,30]
[325390937,1714805444523,-812.48,0.00041095,30]
[325390938,1714805444532,-2999.95,0.00041095,30]
[325390939,1714805444542,-646.18,0.00041095,30]
[325390940,1714805444552,-1218.25,0.00041095,30]
[325390941,1714805444562,-500.0,0.00041095,30]
[325390942,1714805444571,-500.0,0.00041095,30]
[325390943,1714805444581,-2872.24,0.00041095,30]
[325390944,1714805444590,-887.95,0.00041095,30]
[325390945,1714805444599,-269.62079721,0.00041095,30]
[325390946,1714805444608,-500.0,0.00041095,30]
[325390947,1714805444618,-500.0,0.00041095,30]
[325390948,1714805444627,-576.53,0.00041095,30]
[325390949,1714805444637,-500.0,0.00041095,30]
[325390950,1714805444647,-500.0,0.00041095,30]
[325390951,1714805444656,-1059.18,0.00041095,30]
[325390952,1714805444665,-953.98,0.00041095,30]
[325390953,1714805444675,-500.0,0.00041095,30]
[325390954,1714805444684,-218.80214233,0.00041095,30]
[325390955,1714805444694,-1797.14,0.00041095,30]
[325390956,1714805444703,-500.0,0.00041095,30]
[325390957,1714805444713,-1109.23,0.00041095,30]
[325390958,1714805444722,-1314.02,0.00041095,30]
[325390959,1714805444732,-503.26,0.00041095,30]
[325390960,1714805444741,-4128.45,0.00041095,30]
[325390961,1714805444751,-1208.19,0.00041095,30]
[325390962,1714805444760,-500.0,0.00041095,30]
[325390963,1714805444769,-534.81,0.00041095,30]
[325390964,1714805444778,-603.72,0.00041095,30]
[325390965,1714805444788,-500.0,0.00041095,30]
[325390966,1714805444797,-536.49673113,0.00041095,30]
[325390967,1714805444806,-1431.8,0.00041095,30]
[325390968,1714805444816,-500.0,0.00041095,30]
[325390969,1714805444825,-1308.46,0.00041095,30]
[325390970,1714805444835,-3052.76,0.00041095,30]
[325390971,1714805444844,-1104.55,0.00041095,30]
[325390972,1714805444853,-1969.79,0.00041095,30]
[325390973,1714805444862,-955.38,0.00041095,30]
[325390974,1714805444871,-1394.85,0.00041095,30]
[325390975,1714805444880,-542.37,0.00041095,30]
[325390976,1714805444890,-1183.55,0.00041095,30]
[325390977,1714805444900,-1418.38,0.00041095,30]
[325390978,1714805444909,-500.0,0.00041095,30]
[325390979,1714805444923,-631.63,0.00041095,30]
[325390980,1714805444932,-500.0,0.00041095,30]
[325390981,1714805444941,-500.0,0.00041095,30]
[325390982,1714805444951,-500.0,0.00041095,30]
[325390983,1714805444961,-1692.7,0.00041095,30]
[325390984,1714805444971,-2097.5,0.00041095,30]
[325390985,1714805444980,-500.0,0.00041095,30]
[325390986,1714805444990,-500.0,0.00041095,30]
[325390987,1714805445000,-500.0,0.00041095,30]
[325390988,1714805445010,-1962.15,0.00041095,2]
[325390989,1714805445019,-500.0,0.00041095,30]
[325390990,1714805445029,-500.0,0.00041095,30]
[325390991,1714805445038,-608.89,0.00041095,30]
[325390992,1714805445047,-3431.55,0.00041095,7]
[325390993,1714805445057,-1665.76,0.00041095,30]
[325390994,1714805445066,-562.26,0.00041095,30]
[325390995,1714805445075,-1841.3,0.00041095,30]
[325390996,1714805445085,-500.0,0.00041095,30]
[325390997,1714805445094,-603.12,0.00041095,30]
[325390998,1714805445104,-1029.25,0.00041095,30]
[325390999,1714805445114,-607.14,0.00041095,30]
[325391000,1714805445124,-796.52,0.00041095,30]
[325391001,1714805445133,-500.0,0.00041095,30]
[325391002,1714805445143,-500.0,0.00041095,30]
[325391003,1714805445152,-500.0,0.00041095,30]
[325391004,1714805445162,-914.45,0.00041095,30]
[325391005,1714805445171,-661.71,0.00041095,30]
[325391006,1714805445180,-620.7,0.00041095,30]
[325391007,1714805445189,-1015.96,0.00041095,30]
[325391008,1714805445199,-500.0,0.00041095,30]
[325391009,1714805445208,-771.03,0.00041095,30]
[325391010,1714805445218,-500.0,0.00041095,30]
[325391011,1714805445227,-919.13,0.00041095,30]
[325391012,1714805445236,-500.0,0.00041095,30]
[325391013,1714805445247,-500.0,0.00041095,30]
[325391014,1714805445255,-581.16,0.00041095,30]
[325391015,1714805445264,-1585.48,0.00041095,30]
[325391016,1714805445273,-500.0,0.00041095,30]
[325391017,1714805445282,-1211.35,0.00041095,30]
[325391018,1714805445292,-1483.32,0.00041095,30]
[325391019,1714805445301,-502.8850313,0.00041095,30]
[325391020,1714805445311,-1300.3,0.00041095,30]
[325391021,1714805445319,-500.0,0.00041095,30]
[325391022,1714805445329,-620.23140164,0.00041095,30]
[325391023,1714805445339,-935.2,0.00041095,30]
[325391024,1714805445348,-2459.51,0.00041095,30]
[325391025,1714805445357,-717.85,0.00041095,30]
[325391026,1714805445367,-515.60585974,0.00041095,30]
[325391027,1714805445376,-1945.59,0.00041095,30]
[325391028,1714805445386,-538.09,0.00041095,30]
[325391029,1714805445395,-689.71,0.00041095,30]
[325391030,1714805445404,-505.55,0.00041095,30]
[325391031,1714805445414,-500.0,0.00041095,30]
[325391032,1714805445423,-562.34,0.00041095,30]
[325391033,1714805445433,-502.5175725,0.00041095,30]
[325391034,1714805445443,-1275.24,0.00041095,30]
[325391035,1714805445452,-628.11,0.00041095,30]
[325391036,1714805445462,-500.0,0.00041095,30]
[325391037,1714805445471,-1040.91,0.00041095,30]
[325391038,1714805445482,-500.0,0.00041095,30]
[325391039,1714805445492,-500.0,0.00041095,30]
[325391040,1714805445501,-652.64,0.00041095,30]
[325391041,1714805445510,-1209.19,0.00041095,30]
[325391042,1714805445520,-500.0,0.00041095,30]
[325391043,1714805445529,-873.73,0.00041095,30]
[325391044,1714805445539,-1774.99,0.00041095,30]
[325391046,1714805445548,-2916.04,0.00041095,30]
[325391049,1714805445558,-827.72,0.00041095,30]
[325391050,1714805445567,-1460.4,0.00041095,30]
[325391052,1714805445577,-598.78,0.00041095,30]
[325391054,1714805445586,-507.44,0.00041095,30]
[325391056,1714805445596,-500.0,0.00041095,30]
[325391057,1714805445606,-500.0,0.00041095,30]
[325391058,1714805445615,-607.58,0.00041095,30]
[325391059,1714805445624,-500.0,0.00041095,30]
[325391060,1714805445634,-500.0,0.00041095,30]
[325391061,1714805445644,-2590.31,0.00041095,30]
[325391062,1714805445653,-1474.12,0.00041095,30]
[325391063,1714805445662,-500.0,0.00041095,30]
[325391064,1714805445671,-1112.74,0.00041095,30]
[325391065,1714805445680,-1152.39,0.00041095,30]
[325391066,1714805445690,-528.65406307,0.00041095,30]
[325391067,1714805445699,-1165.26,0.00041095,30]
[325391068,1714805445708,-881.07,0.00041095,30]
[325391069,1714805445718,-1561.58,0.00041095,30]
[325391070,1714805445727,-1779.54,0.00041095,30]
[325391071,1714805445736,-677.13,0.00041095,30]
[325391072,1714805445746,-500.0,0.00041095,30]
[325391073,1714805445755,-500.0,0.00041095,30]
[325391074,1714805445765,-1352.25,0.00041095,30]
[325391075,1714805445774,-956.91,0.00041095,30]
[325391076,1714805445784,-1503.54,0.00041095,30]
[325391077,1714805445794,-561.0,0.00041095,30]
[325391078,1714805445803,-1240.44,0.00041095,30]
[325391079,1714805445813,-500.0,0.00041095,30]
[325391080,1714805445822,-1242.85,0.00041095,30]
[325391081,1714805445832,-957.66,0.00041095,30]
[325391082,1714805445841,-500.0,0.00041095,30]
[325391083,1714805445851,-1676.05,0.00041095,30]
[325391084,1714805445860,-764.61,0.00041095,30]
[325391085,1714805445870,-500.0,0.00041095,30]
[325391086,1714805445879,-1193.73,0.00041095,30]
[325391087,1714805445889,-500.0,0.00041095,30]
[325391088,1714805445899,-1328.05,0.00041095,30]
[325391089,1714805445909,-500.0,0.00041095,30]
[325391090,1714805445923,-500.0,0.00041095,30]
[325391091,1714805445932,-500.0,0.00041095,30]
[325391092,1714805445942,-638.76,0.00041095,30]
[325391093,1714805445951,-523.05,0.00041095,30]
[325391094,1714805445962,-500.0,0.00041095,30]
[325391095,1714805445972,-500.0,0.00041095,30]
[325391096,1714805445981,-1553.76,0.00041095,30]
[325391097,1714805445992,-500.0,0.00041095,30]
[325391098,1714805446002,-566.7,0.00041095,30]
[325391099,1714805446011,-1381.27,0.00041095,30]
[325391100,1714805446021,-2510.7,0.00041095,30]
[325391101,1714805446031,-500.0,0.00041095,30]
[325391102,1714805446040,-572.53,0.00041095,30]
[325391103,1714805446049,-1360.43,0.00041095,30]
[325391104,1714805446059,-1459.43,0.00041095,30]
[325391105,1714805446068,-1156.57,0.00041095,30]
[325391106,1714805446077,-500.0,0.00041095,30]
[325391107,1714805446086,-607.72,0.00041095,30]
[325391108,1714805446095,-583.13,0.00041095,30]
[325391109,1714805446104,-943.31,0.00041095,30]
[325391110,1714805446113,-198.57842671,0.00041095,30]
[325391111,1714805446122,-500.0,0.00041095,30]
[325391112,1714805446132,-1079.46,0.00041095,30]
[325391113,1714805446141,-817.16,0.00041095,30]
[325391114,1714805446151,-605.46,0.00041095,30]
[325391115,1714805446159,-934.99,0.00041095,30]
[325391116,1714805446168,-500.0,0.00041095,30]
[325391117,1714805446178,-650.33,0.00041095,30]
[325391118,1714805446187,-925.21,0.00041095,30]
[325391119,1714805446196,-639.62,0.00041095,30]
[325391120,1714805446206,-365.77854991,0.00041095,30]
[325391121,1714805446215,-2334.73,0.00041095,30]
[325391122,1714805446224,-807.77,0.00041095,30]
[325391123,1714805446233,-1255.78,0.00041095,30]
[325391124,1714805446243,-756.72,0.00041095,30]
[325391125,1714805446252,-896.76,0.00041095,30]
[325391126,1714805446261,-900.42,0.00041095,30]
[325391127,1714805446271,-598.37,0.00041095,30]
[325391128,1714805446280,-1570.32,0.00041095,30]
[325391129,1714805446290,-500.0,0.00041095,30]
[325391130,1714805446299,-992.31,0.00041095,30]
[325391131,1714805446308,-1212.37,0.00041095,30]
[325391132,1714805446317,-500.0,0.00041095,30]
[325391133,1714805446327,-1081.22,0.00041095,30]
[325391134,1714805446336,-729.25,0.00041095,30]
[325391135,1714805446346,-842.35,0.00041095,30]
[325391136,1714805446355,-500.0,0.00041095,30]
[325391137,1714805446365,-1036.68,0.00041095,30]
[325391138,1714805446375,-560.97,0.00041095,30]
[325391139,1714805446384,-1143.35,0.00041095,30]
[325391140,1714805446394,-1605.15,0.00041095,30]
[325391141,1714805446403,-660.25,0.00041095,30]
[325391142,1714805446412,-500.0,0.00041095,30]
[325391143,1714805446422,-500.0,0.00041095,30]
[325391144,1714805446432,-877.24,0.00041095,30]
[325391145,1714805446441,-500.0,0.00041095,30]
[325391146,1714805446451,-500.0,0.00041095,30]
[325391147,1714805446460,-500.0,0.00041095,30]
[325391148,1714805446470,-1012.26,0.00041095,30]
[325391149,1714805446479,-500.45198805,0.00041095,30]
[325391150,1714805446489,-500.0,0.00041095,30]
[325391151,1714805446499,-885.03,0.00041095,30]
[325391152,1714805446508,-500.0,0.00041095,30]
[325391153,1714805446517,-500.0,0.00041095,30]
[325391154,1714805446527,-500.0,0.00041095,30]
[325391155,1714805446537,-500.0,0.00041095,30]
[325391156,1714805446547,-731.92,0.00041095,30]
[325391157,1714805446556,-761.24,0.00041095,30]
[325391158,1714805446566,-500.0,0.00041095,30]
[325391159,1714805446575,-1518.63,0.00041095,30]
[325391160,1714805446584,-823.71,0.00041095,2]
[325391161,1714805446594,-1427.21,0.00041095,30]
[325391162,1714805446604,-500.31,0.00041095,30]
[325391163,1714805446614,-500.0,0.00041095,30]
[325391164,1714805446623,-3272.16,0.00041095,30]
[325391165,1714805446633,-153.8372644,0.00041095,30]
[325391166,1714805446643,-648.52,0.00041095,30]
[325391167,1714805446653,-500.0,0.00041095,30]
[325391168,1714805446662,-1163.5,0.00041095,30]
[325391169,1714805446671,-500.0,0.00041095,30]
[325391170,1714805446681,-1038.45,0.00041095,30]
[325391171,1714805446690,-500.0,0.00041095,30]
[325391172,1714805446700,-1228.6,0.00041095,30]
[325391173,1714805446711,-500.0,0.00041095,30]
[325391174,1714805446721,-500.0,0.00041095,30]
[325391175,1714805446731,-500.0,0.00041095,30]
[325391176,1714805446742,-657.09,0.00041095,30]
[325391177,1714805446751,-500.0,0.00041095,30]
[325391178,1714805446759,-2224.08,0.00041095,30]
[325391179,1714805446769,-1007.93,0.00041095,30]
[325391180,1714805446779,-500.0,0.00041095,30]
[325391181,1714805446790,-500.0,0.00041095,30]
[325391182,1714805446799,-783.22,0.00041095,30]
[325391183,1714805446809,-500.0,0.00041095,30]
[325391184,1714805446819,-1386.99,0.00041095,30]
[325391185,1714805446828,-1081.94,0.00041095,30]
[325391186,1714805446838,-500.0,0.00041095,30]
[325391187,1714805446847,-795.99,0.00041095,30]
[325391188,1714805446857,-4212.95,0.00041095,30]
[325391189,1714805446866,-639.78,0.00041095,30]
[325391190,1714805446875,-500.0,0.00041095,30]
[325391191,1714805446885,-1011.49,0.00041095,30]
[325391192,1714805446894,-500.0,0.00041095,30]
[325391193,1714805446903,-764.53,0.00041095,30]
[325391194,1714805446914,-2191.97,0.00041095,30]
[325391195,1714805446926,-1104.93,0.00041095,30]
[325391196,1714805446935,-761.64,0.00041095,30]
[325391197,1714805446945,-940.55,0.00041095,30]
[325391198,1714805446955,-500.0,0.00041095,30]
[325391199,1714805446963,-500.0,0.00041095,30]
[325391200,1714805446972,-789.88,0.00041095,30]
[325391201,1714805446981,-500.0,0.00041095,30]
[325391202,1714805446993,-1302.46,0.00041095,30]
[325391203,1714805447003,-500.0,0.00041095,30]
[325391204,1714805447012,-979.86,0.00041095,30]
[325391205,1714805447022,-9962.82,0.00041095,30]
[325391206,1714805447031,-500.0,0.00041095,30]
[325391207,1714805447041,-3479.37,0.00041095,30]
[325391208,1714805447050,-3860.52,0.00041095,30]
[325391209,1714805447059,-644.25,0.00041095,30]
[325391210,1714805447069,-1308.4,0.00041095,30]
[325391211,1714805447078,-723.52,0.00041095,30]
[325391212,1714805447088,-1268.67,0.00041095,30]
[325391213,1714805447097,-907.88,0.00041095,30]
[325391214,1714805447107,-743.44,0.00041095,30]
[325391215,1714805447116,-500.0,0.00041095,30]
[325391216,1714805447125,-500.0,0.00041095,30]
[325391217,1714805447135,-500.0,0.00041095,30]
[325391218,1714805447144,-1201.17,0.00041095,30]
[325391219,1714805447154,-778.13,0.00041095,30]
[325391220,1714805447164,-959.96,0.00041095,30]
[325391221,1714805447173,-2582.31,0.00041095,30]
[325391222,1714805447182,-500.0,0.00041095,30]
[325391223,1714805447192,-957.78,0.00041095,30]
[325391224,1714805447201,-1821.15,0.00041095,30]
[325391225,1714805447211,-2067.64,0.00041095,30]
[325391226,1714805447220,-704.03,0.00041095,30]
[325391227,1714805447230,-458.7534425,0.00041095,30]
[325391228,1714805447239,-2705.51,0.00041095,30]
[325391229,1714805447250,-500.0,0.00041095,30]
[325391230,1714805447259,-1516.3,0.00041095,30]
[325391231,1714805447269,-1257.05,0.00041095,30]
[325391232,1714805447278,-1004.35,0.00041095,30]
[325391233,1714805447288,-500.0,0.00041095,30]
[325391234,1714805447297,-500.0,0.00041095,30]
[325391235,1714805447306,-2446.78,0.00041095,30]
[325391236,1714805447315,-805.49,0.00041095,30]
[325391237,1714805447324,-500.0,0.00041095,30]
[325391238,1714805447334,-500.0,0.00041095,30]
[325391239,1714805447344,-2411.98,0.00041095,30]
[325391240,1714805447353,-520.32749818,0.00041095,30]
[325391241,1714805447363,-1040.81,0.00041095,30]
[325391242,1714805447372,-500.0,0.00041095,30]
[325391243,1714805447381,-1157.56,0.00041095,30]
[325391244,1714805447390,-500.0,0.00041095,30]
[325391245,1714805447399,-500.0,0.00041095,30]
[325391246,1714805447408,-1353.59,0.00041095,30]
[325391247,1714805447418,-1114.79,0.00041095,30]
[325391248,1714805447428,-500.0,0.00041095,30]
[325391249,1714805447437,-500.0,0.00041095,30]
[325391250,1714805447447,-959.61,0.00041095,30]
[325391251,1714805447456,-500.0,0.00041095,30]
[325391252,1714805447466,-1088.49,0.00041095,30]
[325391253,1714805447476,-500.0,0.00041095,30]
[325391254,1714805447485,-500.0,0.00041095,30]
[325391255,1714805447495,-5963.24,0.00041095,30]
[325391256,1714805447504,-624.16,0.00041095,30]
[325391257,1714805447513,-946.38,0.00041095,30]
[325391258,1714805447523,-500.0,0.00041095,30]
[325391259,1714805447532,-500.0,0.00041095,30]
[325391260,1714805447542,-2369.95,0.00041095,30]
[325391261,1714805447551,-500.0,0.00041095,30]
[325391262,1714805447560,-500.0,0.00041095,30]
[325391263,1714805447569,-500.0,0.00041095,30]
[325391264,1714805447579,-500.0,0.00041095,30]
[325391265,1714805447588,-500.0,0.00041095,30]
[325391266,1714805447597,-668.0,0.00041095,30]
[325391267,1714805447606,-500.0,0.00041095,30]
[325391268,1714805447615,-2373.2,0.00041095,30]
[325391269,1714805447624,-587.91522974,0.00041095,30]
[325391270,1714805447634,-774.57,0.00041095,30]
[325391271,1714805447643,-2462.32,0.00041095,30]
[325391272,1714805447651,-500.0,0.00041095,30]
[325391273,1714805447660,-1174.76,0.00041095,30]
[325391274,1714805447670,-5617.49,0.00041095,30]
[325391275,1714805447679,-854.13,0.00041095,30]
[325391276,1714805447688,-1132.26,0.00041095,30]
[325391277,1714805447698,-500.0,0.00041095,30]
[325391278,1714805447707,-1540.23,0.00041095,30]
[325391279,1714805447717,-1034.3,0.00041095,30]
[325391280,1714805447727,-1047.99,0.00041095,30]
[325391281,1714805447736,-1700.05,0.00041095,2]
[325391282,1714805447747,-522.41,0.00041095,30]
[325391283,1714805447757,-1099.45,0.00041095,30]
[325391284,1714805447766,-2550.84,0.00041095,30]
[325391285,1714805447775,-645.31,0.00041095,30]
[325391286,1714805447785,-1087.12,0.00041095,30]
[325391287,1714805447795,-1803.17,0.00041095,30]
[325391288,1714805447804,-8749.26,0.00041095,30]
[325391289,1714805447813,-3678.71,0.00041095,30]
[325391290,1714805447823,-500.0,0.00041095,30]
[325391291,1714805447832,-1000.0,0.00041095,2]
[325391292,1714805447842,-500.0,0.00041095,30]
[325391293,1714805447851,-745.94,0.00041095,30]
[325391294,1714805447861,-500.0,0.00041095,30]
[325391295,1714805447870,-3797.25,0.00041095,30]
[325391296,1714805447880,-500.0,0.00041095,30]
[325391297,1714805447890,-545.0,0.00041095,30]
[325391298,1714805447900,-500.0,0.00041095,30]
[325391299,1714805447910,-3450.46,0.00041095,30]
[325391300,1714805448047,-500.0,0.00041095,30]
[325391301,1714805448057,-827.47,0.00041095,30]
[325391302,1714805448067,-909.31,0.00041095,30]
[325391303,1714805448078,-1914.06,0.00041095,30]
[325391304,1714805448088,-500.0,0.00041095,30]
[325391305,1714805448098,-500.0,0.00041095,30]
[325391306,1714805448107,-4194.59,0.00041095,30]
[325391307,1714805448117,-500.0,0.00041095,30]
[325391308,1714805448127,-2470.16,0.00041095,30]
[325391309,1714805448137,-909.23,0.00041095,30]
[325391310,1714805448147,-500.0,0.00041095,30]
[325391311,1714805448157,-35960.53,0.00041095,30]
[325391312,1714805448167,-1009.33,0.00041095,30]
[325391313,1714805448176,-500.0,0.00041095,30]
[325391314,1714805448186,-1066.74,0.00041095,30]
[325391315,1714805448195,-500.0,0.00041095,30]
[325391316,1714805448204,-1349.89,0.00041095,30]
[325391317,1714805448214,-500.0,0.00041095,30]
[325391318,1714805448223,-500.0,0.00041095,30]
[325391319,1714805448232,-2544.88,0.00041095,30]
[325391320,1714805448242,-1356.16,0.00041095,30]
[325391321,1714805448251,-510.97,0.00041095,30]
[325391322,1714805448262,-500.0,0.00041095,30]
[325391323,1714805448271,-7506.59,0.00041095,30]
[325391324,1714805448281,-2178.87,0.00041095,30]
[325391325,1714805448291,-500.0,0.00041095,30]
[325391326,1714805448300,-3611.86,0.00041095,30]
[325391327,1714805448309,-1228.39,0.00041095,30]
[325391328,1714805448318,-306.85743248,0.00041095,30]
[325391329,1714805448328,-579.55,0.00041095,30]
[325391330,1714805448337,-3975.19,0.00041095,30]
[325391331,1714805448347,-1484.61,0.00041095,30]
[325391332,1714805448356,-958.05,0.00041095,30]
[325391333,1714805448365,-8037.1,0.00041095,30]
[325391334,1714805448375,-1317.92,0.00041095,30]
[325391335,1714805448384,-500.0,0.00041095,30]
[325391336,1714805448394,-710.36,0.00041095,30]
[325391337,1714805448403,-971.98,0.00041095,30]
[325391338,1714805448413,-274.56618788,0.00041095,30]
[325391339,1714805448424,-252.69012928,0.00041095,30]
[325391340,1714805448433,-1543.86,0.00041095,30]
[325391341,1714805448442,-5322.73,0.00041095,30]
[325391342,1714805448453,-3309.9,0.00041095,30]
[325391343,1714805448462,-500.0,0.00041095,30]
[325391344,1714805448471,-725.39,0.00041095,30]
[325391345,1714805448480,-701.72,0.00041095,30]
[325391346,1714805448490,-500.0,0.00041095,30]
[325391347,1714805448500,-602.86,0.00041095,30]
[325391348,1714805448510,-838.68,0.00041095,30]
[325391349,1714805448519,-500.0,0.00041095,30]
[325391350,1714805448528,-596.32,0.00041095,30]
[325391351,1714805448538,-500.0,0.00041095,30]
[325391352,1714805448547,-1081.19,0.00041095,30]
[325391353,1714805448557,-17364.45,0.00041095,30]
[325391354,1714805448567,-500.0,0.00041095,30]
[325391355,1714805448576,-535.75151854,0.00041095,30]
[325391356,1714805448586,-768.44,0.00041095,30]
[325391357,1714805448595,-1770.83,0.00041095,30]
[325391358,1714805448605,-1064.74,0.00041095,30]
[325391359,1714805448614,-500.0,0.00041095,30]
[325391360,1714805448624,-1912.9,0.00041095,30]
[325391361,1714805448633,-1812.09,0.00041095,30]
[325391362,1714805448644,-603.09,0.00041095,30]
[325391363,1714805448654,-593.98,0.00041095,30]
[325391364,1714805448664,-1121.15,0.00041095,30]
[325391365,1714805448673,-820.08,0.00041095,30]
[325391366,1714805448683,-935.49,0.00041095,30]
[325391367,1714805448692,-1095.26,0.00041095,30]
[325391368,1714805448702,-2018.04,0.00041095,30]
[325391369,1714805448711,-960.58,0.00041095,30]
[325391370,1714805448721,-908.25,0.00041095,30]
[325391371,1714805448730,-597.7,0.00041095,30]
[325391372,1714805448740,-2451.57,0.00041095,30]
[325391373,1714805448751,-46058.14,0.00041095,30]